bitfinex-derivatives/quotes_BNBF0:USTF0_20230901
["timestamp","ask_amount","ask_price","bid_price","bid_amount"]
[1693527806685,0.07514213,217.86,216.89,0.1697332]
[1693527806882,0.07514213,217.86,216.87,0.1697332]
[1693527808783,0.07514213,217.85,216.87,0.1697332]
[1693527810784,0.07514213,217.84,216.87,5.1111921]
[1693527810989,0.07514213,217.84,216.88,0.1697332]
[1693527811892,0.07514213,217.84,216.89,0.1697332]
[1693527812192,0.07514213,217.84,216.9,0.1697332]
[1693527812391,0.07514213,217.84,216.91,0.1697332]
[1693527812590,0.07514213,217.84,216.92,0.1697332]
[1693527812790,0.07514213,217.83,216.93,0.1697332]
[1693527812993,0.07514213,217.83,216.94,0.1697332]
[1693527813193,0.07514213,217.83,216.95,0.1697332]
[1693527813393,0.07514213,217.83,216.88,4.9414589]
[1693527813394,0.07514213,217.83,216.89,0.1697332]
[1693527813692,0.07514213,217.83,216.9,0.1697332]
[1693527813892,0.07514213,217.83,216.91,0.1697332]
[1693527814092,0.07514213,217.82,216.89,0.1697332]
[1693527814290,0.07514213,217.82,216.9,0.1697332]
[1693527814592,0.07514213,217.84,216.91,0.1697332]
[1693527814893,0.07514213,217.83,216.92,0.1697332]
[1693527815193,0.07514213,217.83,216.93,0.1697332]
[1693527815492,0.07514213,217.83,216.94,0.1697332]
[1693527815693,0.07514213,217.83,216.95,0.1697332]
[1693527815890,0.07514213,217.83,216.91,0.1697332]
[1693527816092,0.07514213,217.83,216.92,0.1697332]
[1693527816391,0.07514213,217.83,216.93,0.1697332]
[1693527816591,0.07514213,217.83,216.94,0.1697332]
[1693527816787,0.07514213,217.83,216.91,0.1697332]
[1693527816993,0.07514213,217.83,216.92,0.1697332]
[1693527817193,0.07514213,217.83,216.91,0.1697332]
[1693527817393,0.07514213,217.83,216.92,0.1697332]
[1693527817593,0.07514213,217.83,216.91,0.1697332]
[1693527817794,0.07514213,217.83,216.92,0.1697332]
[1693527818096,0.07514213,217.83,216.93,0.1697332]
[1693527818297,0.07514213,217.83,216.94,0.1697332]
[1693527818497,0.07514213,217.83,216.95,0.1697332]
[1693527818799,0.07514213,217.83,216.96,0.1697332]
[1693527818992,0.07514213,217.83,216.97,0.1697332]
[1693527819191,0.07514213,217.83,216.89,4.9414589]
[1693527819192,0.07514213,217.83,216.98,0.1697332]
[1693527819390,0.07514213,217.83,216.9,0.1697332]
[1693527819597,0.07514213,217.82,216.91,0.1697332]
[1693527819803,0.07514213,217.82,216.9,0.1697332]
[1693527819994,0.07514213,217.82,216.89,4.9414589]
[1693527819995,0.07514213,217.82,216.91,0.1697332]
[1693527820195,0.07514213,217.82,216.92,0.1697332]
[1693527820399,0.07514213,217.82,216.9,0.1697332]
[1693527820702,0.07514213,217.82,216.91,0.1697332]
[1693527821000,0.07514213,217.82,216.92,0.1697332]
[1693527821196,0.07514213,217.82,216.93,0.1697332]
[1693527821395,0.07514213,217.82,216.9,0.1697332]
[1693527821599,0.07514213,217.82,216.91,0.1697332]
[1693527824602,0.07514213,217.81,216.91,0.1697332]
[1693527824805,0.07514213,217.81,216.91,5.1111921]
[1693527824999,0.07514213,217.81,216.92,0.1697332]
[1693527825205,0.15028427,217.83,216.92,0.1697332]
[1693527825206,0.07514213,217.83,216.92,0.1697332]
[1693527825604,0.07514213,217.82,216.92,0.1697332]
[1693527826300,0.07514213,217.82,216.92,5.1111921]
[1693527826501,0.07514213,217.82,216.93,5.1111921]
[1693527826706,0.07514213,217.82,216.94,0.1697332]
[1693527827300,0.07514213,217.81,216.94,0.1697332]
[1693527827509,0.07514213,217.81,216.95,0.1697332]
[1693527827702,0.07514213,217.8,216.93,5.1111921]
[1693527827904,0.07514213,217.81,216.94,0.1697332]
[1693527828600,0.07514213,217.8,216.94,0.1697332]
[1693527829502,0.07514213,217.79,216.94,0.1697332]
[1693527830509,0.07514213,217.78,216.95,4.9414589]
[1693527830703,0.07514213,217.78,216.96,5.1111921]
[1693527830905,0.07514213,217.78,216.97,0.1697332]
[1693527831608,0.07514213,217.78,216.98,0.1697332]
[1693527831811,0.07514213,217.78,216.99,0.1697332]
[1693527832009,0.07514213,217.78,216.96,0.1697332]
[1693527832210,0.07514213,217.78,216.97,0.1697332]
[1693527832403,0.07514213,217.78,216.96,0.1697332]
[1693527832609,0.07514213,217.78,216.97,0.1697332]
[1693527832807,0.07514213,217.79,216.98,0.1697332]
[1693527833003,0.07514213,217.79,216.96,0.1697332]
[1693527833309,0.07514213,217.79,216.97,0.1697332]
[1693527833509,0.07514213,217.78,216.98,0.1697332]
[1693527833711,0.07514213,217.78,216.96,5.1111921]
[1693527833910,0.07514213,217.79,216.97,0.1697332]
[1693527835715,0.07514213,217.74,216.97,0.1697332]
[1693527835909,0.07514213,217.73,216.98,0.1697332]
[1693527836109,0.07514213,217.73,216.92,0.1697332]
[1693527836309,0.07514213,217.73,216.93,0.1697332]
[1693527836510,0.07514213,217.73,216.94,0.1697332]
[1693527836709,0.07514213,217.74,216.92,0.1697332]
[1693527836911,0.07514213,217.74,216.93,0.1697332]
[1693527837111,0.07514213,217.74,216.94,0.1697332]
[1693527837311,0.07514213,217.74,216.91,0.1697332]
[1693527837508,0.07514213,217.74,216.92,0.1697332]
[1693527837711,0.07514213,217.75,216.93,0.1697332]
[1693527837910,0.07514213,217.75,216.9,0.1697332]
[1693527838110,0.07514213,217.75,216.91,0.1697332]
[1693527838311,0.07514213,217.75,216.92,0.1697332]
[1693527838507,0.07514213,217.76,216.93,0.1697332]
[1693527838711,0.07514213,217.76,216.94,0.1697332]
[1693527838911,0.07514213,217.76,216.9,0.1697332]
[1693527839107,0.07514213,217.76,216.91,0.1697332]
[1693527839307,0.07514213,217.76,216.89,4.9414589]
[1693527839308,0.07514213,217.76,216.9,0.1697332]
[1693527839514,0.07514213,217.77,216.91,0.1697332]
[1693527839714,0.07514213,217.77,216.92,0.1697332]
[1693527839915,0.07514213,217.77,216.93,0.1697332]
[1693527840114,0.07514213,217.77,216.9,0.1697332]
[1693527840317,0.07514213,217.77,216.91,0.1697332]
[1693527840616,0.07514213,217.77,216.92,0.1697332]
[1693527840815,0.07514213,217.77,216.93,0.1697332]
[1693527841016,0.07514213,217.77,216.94,0.1697332]
[1693527841218,0.07514213,217.77,216.9,0.1697332]
[1693527841511,0.07514213,217.77,216.91,0.1697332]
[1693527841718,0.07514213,217.77,216.92,0.1697332]
[1693527841919,0.07514213,217.78,216.93,0.1697332]
[1693527842218,0.07514213,217.78,216.94,0.1697332]
[1693527842417,0.07514213,217.78,216.89,0.1697332]
[1693527842618,0.07514213,217.78,216.9,0.1697332]
[1693527842817,0.07514213,217.78,216.89,0.1697332]
[1693527843017,0.07514213,217.78,216.9,0.1697332]
[1693527843211,0.07514213,217.79,216.91,0.1697332]
[1693527843415,0.07514213,217.79,216.89,0.1697332]
[1693527843611,0.07514213,217.79,216.9,0.1697332]
[1693527843815,0.07514213,217.79,216.91,0.1697332]
[1693527844017,0.07514213,217.79,216.89,0.1697332]
[1693527844217,0.07514213,217.79,216.9,0.1697332]
[1693527844518,0.07514213,217.79,216.91,0.1697332]
[1693527844718,0.07514213,217.79,216.89,0.1697332]
[1693527845018,0.07514213,217.79,216.9,0.1697332]
[1693527845217,0.07514213,217.79,216.91,0.1697332]
[1693527845418,0.07514213,217.79,216.89,0.1697332]
[1693527845620,0.07514213,217.8,216.9,0.1697332]
[1693527845820,0.07514213,217.8,216.91,0.1697332]
[1693527846120,0.07514213,217.79,216.92,0.1697332]
[1693527846317,0.07514213,217.8,216.93,0.1697332]
[1693527846518,0.07514213,217.8,216.94,0.1697332]
[1693527846719,0.07514213,217.8,216.88,0.1697332]
[1693527847020,0.07514213,217.8,216.89,0.1697332]
[1693527847321,0.07514213,217.8,216.9,0.1697332]
[1693527847521,0.07514213,217.8,216.91,0.1697332]
[1693527847721,0.07514213,217.8,216.92,0.1697332]
[1693527847924,0.07514213,217.8,216.88,0.1697332]
[1693527848122,0.07514213,217.8,216.89,0.1697332]
[1693527848322,0.07514213,217.81,216.9,0.1697332]
[1693527848524,0.07514213,217.81,216.91,0.1697332]
[1693527848719,0.07514213,217.81,216.88,0.1697332]
[1693527848921,0.07514213,217.81,216.89,0.1697332]
[1693527849122,0.07514213,217.81,216.88,0.1697332]
[1693527849323,0.07514213,217.81,216.89,0.1697332]
[1693527849522,0.07514213,217.81,216.9,0.1697332]
[1693527849722,0.07514213,217.81,216.88,0.1697332]
[1693527849920,0.07514213,217.81,216.89,0.1697332]
[1693527850225,0.07514213,217.81,216.9,0.1697332]
[1693527850425,0.07514213,217.81,216.91,0.1697332]
[1693527850721,0.07514213,217.81,216.92,0.1697332]
[1693527850918,0.07514213,217.81,216.88,0.1697332]
[1693527851122,0.07514213,217.81,216.89,0.1697332]
[1693527851323,0.07514213,217.81,216.9,0.1697332]
[1693527851521,0.07514213,217.81,216.91,0.1697332]
[1693527851725,0.07514213,217.81,216.88,0.1697332]
[1693527851921,0.07514213,217.81,216.89,0.1697332]
[1693527852126,0.07514213,217.81,216.9,0.1697332]
[1693527852326,0.07514213,217.81,216.91,0.1697332]
[1693527852522,0.07514213,217.81,216.88,0.1697332]
[1693527852720,0.07514213,217.82,216.88,0.1697332]
[1693527857330,0.07514213,217.81,216.88,0.1697332]
[1693527860030,0.07514213,217.82,216.88,0.1697332]
[1693527860426,0.07514213,217.82,216.9,4.9414589]
[1693527860623,0.07514213,217.82,216.91,0.1697332]
[1693527860828,0.07514213,217.82,216.92,0.1697332]
[1693527861028,0.07514213,217.82,216.9,0.1697332]
[1693527861229,0.07514213,217.82,216.91,0.1697332]
[1693527861531,0.07514213,217.82,216.92,0.1697332]
[1693527861731,0.07514213,217.82,216.93,0.1697332]
[1693527861933,0.07514213,217.82,216.9,5.1111921]
[1693527862230,0.07514213,217.82,216.91,0.1697332]
[1693527862732,0.07514213,217.81,216.91,5.1111921]
[1693527862933,0.07514213,217.81,216.92,0.1697332]
[1693527865533,0.07514213,217.8,216.92,0.1697332]
[1693527866835,0.07514213,217.81,216.92,0.1697332]
[1693527867136,0.07514213,217.86,216.92,0.1697332]
[1693527867729,0.07514213,217.86,216.97,4.9414589]
[1693527867934,0.07514213,217.86,216.98,0.1697332]
[1693527870343,0.07514213,217.86,216.99,0.1697332]
[1693527870540,0.07514213,217.86,216.97,0.1697332]
[1693527870740,0.07514213,217.86,216.98,0.1697332]
[1693527870936,0.07514213,217.86,216.97,0.1697332]
[1693527871141,0.07514213,217.86,216.98,0.1697332]
[1693527871339,0.07514213,217.86,216.97,0.1697332]
[1693527871535,0.07514213,217.86,216.98,0.1697332]
[1693527871840,0.07514213,217.86,216.99,0.1697332]
[1693527872040,0.07514213,217.86,217.0,0.1697332]
[1693527872238,0.07514213,217.87,216.96,0.1697332]
[1693527874443,0.07514213,217.88,216.97,0.1697332]
[1693527874637,0.07514213,217.87,216.98,0.1697332]
[1693527874841,0.07514213,217.87,216.99,0.1697332]
[1693527875041,0.07514213,217.87,217.0,0.1697332]
[1693527875241,0.07514213,217.87,217.01,0.1697332]
[1693527875543,0.07514213,217.88,217.02,0.1697332]
[1693527875741,0.07514213,217.88,217.03,0.1697332]
[1693527875939,0.07514213,217.88,216.95,0.1697332]
[1693527876140,0.07514213,217.88,216.96,0.1697332]
[1693527876443,0.07514213,217.88,216.97,0.1697332]
[1693527876636,0.07514213,217.88,216.98,0.1697332]
[1693527876838,0.07514213,217.88,216.99,0.1697332]
[1693527877036,0.07514213,217.88,217.0,0.1697332]
[1693527877242,0.07514213,217.88,216.95,0.1697332]
[1693527877443,0.07514213,217.88,216.96,0.1697332]
[1693527877639,0.07514213,217.88,216.95,0.1697332]
[1693527877838,0.07514213,217.88,216.96,0.1697332]
[1693527878037,0.07514213,217.88,216.97,0.1697332]
[1693527878344,0.07514213,217.88,216.98,0.1697332]
[1693527878644,0.07514213,217.88,216.99,0.1697332]
[1693527878837,0.07514213,217.88,216.94,0.1697332]
[1693527879042,0.07514213,217.88,216.95,0.1697332]
[1693527879242,0.07514213,217.89,216.96,0.1697332]
[1693527879442,0.07514213,217.89,216.94,0.1697332]
[1693527879744,0.07514213,217.89,216.95,0.1697332]
[1693527879940,0.07514213,217.89,216.96,0.1697332]
[1693527880145,0.07514213,217.89,216.94,5.1111921]
[1693527880337,0.07514213,217.89,216.95,0.1697332]
[1693527880542,0.07514213,217.89,216.96,0.1697332]
[1693527880743,0.07514213,217.89,216.94,0.1697332]
[1693527880944,0.07514213,217.89,216.95,0.1697332]
[1693527881139,0.07514213,217.89,216.96,0.1697332]
[1693527881442,0.07514213,217.89,216.97,0.1697332]
[1693527881746,0.07514213,217.89,216.98,0.1697332]
[1693527881946,0.07514213,217.89,216.94,0.1697332]
[1693527882246,0.07514213,217.89,216.95,0.1697332]
[1693527882440,0.07514213,217.89,216.96,0.1697332]
[1693527882645,0.07514213,217.89,216.94,0.1697332]
[1693527882846,0.07514213,217.89,216.95,0.1697332]
[1693527883046,0.07514213,217.89,216.96,0.1697332]
[1693527883348,0.07514213,217.89,216.97,0.1697332]
[1693527883548,0.07514213,217.89,216.98,0.1697332]
[1693527883849,0.07514213,217.89,216.99,0.1697332]
[1693527884048,0.07514213,217.89,216.94,0.1697332]
[1693527884247,0.07514213,217.9,216.95,0.1697332]
[1693527884443,0.07514213,217.9,216.96,0.1697332]
[1693527884648,0.07514213,217.9,216.97,0.1697332]
[1693527884843,0.07514213,217.9,216.94,5.1111921]
[1693527885046,0.07514213,217.9,216.95,0.1697332]
[1693527887451,0.07514213,217.89,216.95,0.1697332]
[1693527887646,0.07514213,217.89,216.94,0.1697332]
[1693527887950,0.07514213,217.89,216.95,0.1697332]
[1693527888143,0.07514213,217.89,216.94,0.1697332]
[1693527888350,0.07514213,217.89,216.95,0.1697332]
[1693527889352,0.07514213,217.89,216.96,0.1697332]
[1693527889554,0.07514213,217.89,216.97,0.1697332]
[1693527889755,0.07514213,217.89,216.95,0.1697332]
[1693527889957,0.07514213,217.89,216.96,0.1697332]
[1693527890155,0.07514213,217.89,216.97,0.1697332]
[1693527890357,0.07514213,217.88,216.95,0.1697332]
[1693527890559,0.07514213,217.88,216.96,0.1697332]
[1693527890858,0.07514213,217.88,216.97,0.1697332]
[1693527891058,0.07514213,217.88,216.98,0.1697332]
[1693527891257,0.07514213,217.88,216.99,0.1697332]
[1693527891457,0.07514213,217.88,216.95,0.1697332]
[1693527891660,0.07514213,217.88,216.96,0.1697332]
[1693527891858,0.07514213,217.88,216.97,0.1697332]
[1693527892059,0.07514213,217.88,216.95,0.1697332]
[1693527892259,0.07514213,217.87,216.96,0.1697332]
[1693527892560,0.07514213,217.87,216.97,0.1697332]
[1693527892759,0.07514213,217.87,216.98,0.1697332]
[1693527892958,0.07514213,217.87,216.99,0.1697332]
[1693527893156,0.07514213,217.87,216.95,5.1111921]
[1693527893358,0.07514213,217.87,216.96,0.1697332]
[1693527894459,0.07514213,217.85,216.96,0.1697332]
[1693527894661,0.07514213,217.86,216.95,0.1697332]
[1693527894861,0.07514213,217.86,216.96,0.1697332]
[1693527895056,0.07514213,217.85,216.97,0.1697332]
[1693527895256,0.07514213,217.85,216.95,0.1697332]
[1693527895458,0.07514213,217.85,216.96,0.1697332]
[1693527895658,0.07514213,217.85,216.97,0.1697332]
[1693527895859,0.07514213,217.85,216.95,5.1111921]
[1693527896059,0.07514213,217.85,216.96,0.1697332]
[1693527896260,0.07514213,217.84,216.96,0.1697332]
[1693527897362,0.07514213,217.83,216.96,0.1697332]
[1693527898263,0.07514213,217.83,216.96,5.1111921]
[1693527898462,0.07514213,217.83,216.97,0.1697332]
[1693527899359,0.07514213,217.82,216.97,5.1111921]
[1693527899560,0.07514213,217.82,216.98,0.1697332]
[1693527899757,0.07514213,217.82,216.97,0.1697332]
[1693527900057,0.07514213,217.82,216.98,0.1697332]
[1693527900257,0.07514213,217.81,216.99,0.1697332]
[1693527900459,0.07514213,217.81,217.0,0.1697332]
[1693527900658,0.07514213,217.81,216.97,0.1697332]
[1693527900859,0.07514213,217.81,216.98,0.1697332]
[1693527901263,0.07514213,217.8,216.99,4.9414589]
[1693527901463,0.07514213,217.8,217.0,0.1697332]
[1693527903463,0.07514213,217.8,217.0,5.1111921]
[1693527903664,0.07514213,217.8,217.01,0.1697332]
[1693527905069,0.07514213,217.81,217.01,0.1697332]
[1693527905867,0.07514213,217.8,217.01,0.1697332]
[1693527906268,0.07514213,217.81,217.01,0.1697332]
[1693527907666,0.07514213,217.81,217.01,5.1111921]
[1693527907865,0.07514213,217.81,217.02,0.1697332]
[1693527908271,0.07514213,217.82,217.02,0.1697332]
[1693527911674,0.07514213,217.83,217.02,5.1111921]
[1693527911869,0.07514213,217.83,217.03,0.1697332]
[1693527912270,0.07514213,217.83,217.03,5.1111921]
[1693527912473,0.07514213,217.83,217.04,0.1697332]
[1693527912874,0.07514213,217.83,217.05,0.1697332]
[1693527913074,0.07514213,217.83,217.06,0.1697332]
[1693527913274,0.07514213,217.84,217.07,0.1697332]
[1693527913474,0.07514213,217.84,217.03,0.1697332]
[1693527913771,0.07514213,217.84,217.04,0.1697332]
[1693527913973,0.07514213,217.84,217.03,0.1697332]
[1693527914175,0.07514213,217.84,217.04,0.1697332]
[1693527914470,0.07514213,217.85,217.05,0.1697332]
[1693527914876,0.07514213,217.85,217.04,0.1697332]
[1693527915176,0.07514213,217.85,217.05,0.1697332]
[1693527915375,0.07514213,217.85,217.04,0.1697332]
[1693527915575,0.07514213,217.85,217.05,0.1697332]
[1693527915769,0.07514213,217.85,217.06,0.1697332]
[1693527915969,0.07514213,217.85,217.04,0.1697332]
[1693527918276,0.50094758,217.9,217.04,0.1697332]
[1693527918277,0.07514213,217.86,217.04,5.1111921]
[1693527918474,0.07514213,217.86,217.05,0.1697332]
[1693527918673,0.07514213,217.85,217.05,0.1697332]
[1693527918879,0.07514213,217.85,217.04,0.1697332]
[1693527919081,0.07514213,217.85,217.05,0.1697332]
[1693527919281,0.07514213,217.85,217.04,0.1697332]
[1693527919583,0.07514213,217.85,217.05,0.1697332]
[1693527919779,0.07514213,217.85,217.06,0.1697332]
[1693527920080,0.07514213,217.85,217.07,0.1697332]
[1693527920281,0.07514213,217.85,217.08,0.1697332]
[1693527920477,0.07514213,217.85,217.09,0.1697332]
[1693527920676,0.07514213,217.85,217.1,0.1697332]
[1693527920878,0.07514213,217.85,217.11,0.1697332]
[1693527921077,0.07514213,217.85,217.12,0.1697332]
[1693527921382,0.07514213,217.85,217.13,0.1697332]
[1693527921683,0.07514213,217.85,217.14,0.1697332]
[1693527921881,0.07514213,217.85,217.04,0.1697332]
[1693527922183,0.07514213,217.85,217.05,0.1697332]
[1693527922381,0.07514213,217.85,217.04,0.1697332]
[1693527922581,0.07514213,217.85,217.05,0.1697332]
[1693527922881,0.07514213,217.85,217.06,0.1697332]
[1693527923077,0.07514213,217.85,217.04,0.1697332]
[1693527923382,0.07514213,217.85,217.05,0.1697332]
[1693527923584,0.07514213,217.85,217.06,0.1697332]
[1693527923775,0.07514213,217.85,217.07,0.1697332]
[1693527923976,0.07514213,217.85,217.08,0.1697332]
[1693527924177,0.07514213,217.85,217.09,0.1697332]
[1693527924380,0.07514213,217.85,217.1,0.1697332]
[1693527924578,3.5105108,218.01,217.04,0.1697332]
[1693527924785,0.07522523,217.85,217.05,0.1697332]
[1693527924980,0.07522523,217.85,217.04,0.1697332]
[1693527925180,0.07522523,217.85,217.05,0.1697332]
[1693527925376,0.07522523,217.85,217.04,0.1697332]
[1693527925579,0.07522523,217.85,217.05,0.1697332]
[1693527925780,0.07522523,217.85,217.04,0.1697332]
[1693527925976,0.07522523,217.85,217.05,0.1697332]
[1693527926177,0.07522523,217.85,217.06,0.1697332]
[1693527926383,0.07522523,217.85,217.07,0.1697332]
[1693527926581,0.07522523,217.85,217.03,0.1697332]
[1693527926782,0.07522523,217.85,217.04,0.1697332]
[1693527926977,0.07522523,217.84,217.03,0.1697332]
[1693527927178,0.07522523,217.84,217.04,0.1697332]
[1693527927379,0.07522523,217.84,217.05,0.1697332]
[1693527927577,0.07522523,217.84,217.06,0.1697332]
[1693527927777,0.07522523,217.85,217.07,0.1697332]
[1693527927984,0.07522523,217.85,217.03,0.1697332]
[1693527929083,0.07522523,217.86,217.03,5.1152861]
[1693527929284,0.07522523,217.86,217.04,0.1697332]
[1693527930685,0.07522523,217.85,217.04,0.1697332]
[1693527931687,0.07522523,217.85,217.03,0.1697332]
[1693527931889,0.07522523,217.85,217.04,0.1697332]
[1693527932083,0.07522523,217.85,217.05,0.1697332]
[1693527932287,0.07522523,217.85,217.03,0.1697332]
[1693527932591,0.07522523,217.85,217.04,0.1697332]
[1693527932790,0.07522523,217.85,217.03,0.1697332]
[1693527932991,0.07522523,217.85,217.04,0.1697332]
[1693527933191,0.07522523,217.84,217.05,0.1697332]
[1693527933392,0.07522523,217.84,217.06,0.1697332]
[1693527933584,0.07522523,217.84,217.03,0.1697332]
[1693527933787,0.07522523,217.84,217.04,0.1697332]
[1693527933988,0.07522523,217.84,217.03,0.1697332]
[1693527934189,0.07522523,217.84,217.04,0.1697332]
[1693527934491,0.07522523,217.84,217.05,0.1697332]
[1693527934692,0.07522523,217.84,217.06,0.1697332]
[1693527934887,0.07522523,217.84,217.07,0.1697332]
[1693527935089,0.07522523,217.84,217.03,0.1697332]
[1693527935292,0.07522523,217.84,217.04,0.1697332]
[1693527935490,0.07522523,217.84,217.03,0.1697332]
[1693527935692,0.07522523,217.84,217.04,0.1697332]
[1693527935894,0.07522523,217.84,217.05,0.1697332]
[1693527936089,0.07522523,217.84,217.06,0.1697332]
[1693527936294,0.07522523,217.84,217.07,0.1697332]
[1693527936489,0.07522523,217.84,217.03,0.1697332]
[1693527936690,0.07522523,217.84,217.04,0.1697332]
[1693527936892,0.07522523,217.84,217.03,0.1697332]
[1693527937091,0.07522523,217.84,217.02,4.9455529]
[1693527937092,0.07522523,217.84,217.04,0.1697332]
[1693527937289,0.07522523,217.84,217.03,0.1697332]
[1693527937587,0.07522523,217.84,217.04,0.1697332]
[1693527937792,0.07522523,217.83,217.03,0.1697332]
[1693527937994,0.07522523,217.83,217.04,0.1697332]
[1693527938189,0.07522523,217.83,217.03,0.1697332]
[1693527939092,0.07522523,217.78,217.02,0.1697332]
[1693527939294,0.07522523,217.78,217.03,0.1697332]
[1693527939496,0.07522523,217.79,216.97,0.1697332]
[1693527939694,0.07522523,217.78,216.98,0.1697332]
[1693527939896,0.07522523,217.78,216.94,0.1697332]
[1693527940098,0.07522523,217.78,216.95,0.1697332]
[1693527940394,0.07522523,217.8,216.96,0.1697332]
[1693527940595,0.07522523,217.8,216.97,0.1697332]
[1693527940797,0.07522523,217.8,216.98,0.1697332]
[1693527940998,0.07522523,217.8,216.93,0.1697332]
[1693527941193,0.07522523,217.8,216.94,0.1697332]
[1693527941398,0.07522523,217.81,216.93,0.1697332]
[1693527941698,0.07522523,217.81,216.94,0.1697332]
[1693527941999,0.07522523,217.81,216.95,0.1697332]
[1693527942199,0.07522523,217.81,216.92,0.1697332]
[1693527942499,0.07522523,217.82,216.92,0.1697332]
[1693527942698,0.07522523,217.82,216.91,0.1697332]
[1693527942892,0.07522523,217.82,216.92,0.1697332]
[1693527943093,0.07522523,217.82,216.91,0.1697332]
[1693527943298,0.07522523,217.82,216.92,0.1697332]
[1693527943494,0.07522523,217.82,216.93,0.1697332]
[1693527943698,0.07522523,217.82,216.9,0.1697332]
[1693527943897,0.07522523,217.82,216.91,0.1697332]
[1693527944099,0.07522523,217.82,216.9,0.1697332]
[1693527944296,0.07522523,217.83,216.9,0.1697332]
[1693527944496,0.07522523,217.83,216.89,0.1697332]
[1693527944696,0.07522523,217.83,216.9,0.1697332]
[1693527944900,0.07522523,217.83,216.89,0.1697332]
[1693527945197,0.07522523,217.82,216.9,0.1697332]
[1693527945397,0.07522523,217.83,216.89,0.1697332]
[1693527945602,0.07522523,217.83,216.9,0.1697332]
[1693527945801,0.07522523,217.83,216.88,0.1697332]
[1693527946003,0.07522523,217.83,216.89,0.1697332]
[1693527946203,0.07522523,217.83,216.9,0.1697332]
[1693527946406,0.07522523,217.83,216.88,0.1697332]
[1693527946599,0.07522523,217.83,216.89,0.1697332]
[1693527946798,0.07522523,217.83,216.88,0.1697332]
[1693527947401,0.07522523,217.83,216.87,0.1697332]
[1693527947602,0.07522523,217.83,216.88,0.1697332]
[1693527947803,0.07522523,217.83,216.87,0.1697332]
[1693527948001,0.07522523,217.83,216.86,4.9455529]
[1693527948002,0.07522523,217.83,216.88,0.1697332]
[1693527948203,0.07522523,217.83,216.87,0.1697332]
[1693527948403,0.07522523,217.83,216.88,0.1697332]
[1693527948596,0.07522523,217.83,216.87,0.1697332]
[1693527948796,0.07522523,217.83,216.88,0.1697332]
[1693527948996,0.07522523,217.83,216.86,0.1697332]
[1693527949197,0.07522523,217.83,216.87,0.1697332]
[1693527949398,0.07522523,217.83,216.88,0.1697332]
[1693527949702,0.07522523,217.83,216.89,0.1697332]
[1693527949896,0.07522523,217.83,216.86,0.1697332]
[1693527950100,0.07522523,217.83,216.87,0.1697332]
[1693527950301,0.07522523,217.83,216.86,0.1697332]
[1693527950602,0.07522523,217.83,216.87,0.1697332]
[1693527950803,0.07522523,217.83,216.86,0.1697332]
[1693527951103,0.07522523,217.84,216.86,0.1697332]
[1693527951304,0.07522523,217.83,216.86,0.1697332]
[1693527951503,0.07522523,217.84,216.86,0.1697332]
[1693527952603,0.07522523,217.83,216.86,0.1697332]
[1693527954506,0.07522523,217.82,216.86,0.1697332]
[1693527954705,0.07522523,217.82,216.87,0.1697332]
[1693527954908,0.07522523,217.82,216.84,0.1697332]
[1693527955601,0.07522523,217.81,216.84,0.1697332]
[1693527955805,0.07522523,217.81,216.83,0.1697332]
[1693527956005,0.07522523,217.81,216.84,0.1697332]
[1693527956207,0.07522523,217.81,216.83,0.1697332]
[1693527956507,0.07522523,217.81,216.84,0.1697332]
[1693527956704,0.07522523,217.81,216.85,0.1697332]
[1693527957009,0.07522523,217.81,216.86,0.1697332]
[1693527957201,0.07522523,217.81,216.87,0.1697332]
[1693527957402,0.07522523,217.81,216.88,0.1697332]
[1693527957600,0.07522523,217.81,216.89,0.1697332]
[1693527957806,0.07522523,217.81,216.84,0.1697332]
[1693527958001,0.07522523,217.81,216.85,0.1697332]
[1693527958207,0.07522523,217.81,216.86,0.1697332]
[1693527958412,0.07522523,217.81,216.87,0.1697332]
[1693527958607,0.07522523,217.81,216.88,0.1697332]
[1693527958811,0.07522523,217.81,216.89,0.1697332]
[1693527959111,2.5075077,217.94,216.82,4.9455529]
[1693527959112,0.07522523,217.82,216.9,0.1697332]
[1693527959310,0.07522523,217.81,216.83,0.1697332]
[1693527959510,0.07522523,217.81,216.84,0.1697332]
[1693527959712,0.07522523,217.81,216.85,0.1697332]
[1693527960012,0.07522523,217.81,216.86,0.1697332]
[1693527960205,0.07522523,217.81,216.83,5.1152861]
[1693527960409,0.07522523,217.81,216.84,0.1697332]
[1693527961510,0.07522523,217.81,216.84,5.1152861]
[1693527961709,0.07522523,217.81,216.85,0.1697332]
[1693527963510,0.07522523,217.8,216.85,0.1697332]
[1693527965309,0.07522523,217.79,216.85,0.1697332]
[1693527965909,0.07522523,217.79,216.85,5.1152861]
[1693527966111,0.07522523,217.79,216.86,0.1697332]
[1693527967312,0.07522523,217.78,216.87,4.9455529]
[1693527967512,0.07522523,217.78,216.88,0.1697332]
[1693527968316,0.07522523,217.77,216.88,0.1697332]
[1693527970419,0.07522523,217.76,216.88,5.1152861]
[1693527970613,0.07522523,217.76,216.89,0.1697332]
[1693527971320,0.07522523,217.76,216.89,5.1152861]
[1693527971516,0.07522523,217.75,216.9,0.1697332]
[1693527972422,0.07522523,217.74,216.9,5.1152861]
[1693527972618,0.07522523,217.74,216.91,0.1697332]
[1693527973312,0.07522523,217.72,216.91,0.1697332]